[Event "Titled Tuesday Blitz August 24 2021"]
[White "Sarana, Alexey"]
[Black "Danielian, Vardan"]
[WhiteFideId "24133795"]
[BlackFideId "13301594"]
[WhiteElo "2646"]
[BlackElo "2470"]
[Result "1-0"]
[Round "01"]
[TimeControl "180+1"]
[Date "2021.08.24"]
[WhiteClock "0:00:17"]
[BlackClock "0:00:10"]

1. e4 {[%clk 0:02:59]}  c5 {[%clk 0:02:59]} 2. Nf3 {[%clk 0:02:58]}  d6 {[%clk 0:02:54]} 3. d4 {[%clk 0:02:54]}  cxd4 {[%clk 0:02:55]} 4. Nxd4 {[%clk 0:02:55]}  Nf6 {[%clk 0:02:55]} 5. Nc3 {[%clk 0:02:56]}  g6 {[%clk 0:02:51]} 6. Be3 {[%clk 0:02:51]}  Bg7 {[%clk 0:02:51]} 7. f3 {[%clk 0:02:51]}  O-O {[%clk 0:02:52]} 8. Qd2 {[%clk 0:02:52]}  Nc6 {[%clk 0:02:52]} 9. O-O-O {[%clk 0:02:52]}  Nxd4 {[%clk 0:02:53]} 10. Bxd4 {[%clk 0:02:52]}  Be6 {[%clk 0:02:53]} 11. Kb1 {[%clk 0:02:52]}  Qc7 {[%clk 0:02:54]} 12. h4 {[%clk 0:02:50]}  Rfc8 {[%clk 0:02:54]} 13. h5 {[%clk 0:02:48]}  Qa5 {[%clk 0:02:54]} 14. hxg6 {[%clk 0:02:38]}  hxg6 {[%clk 0:02:52]} 15. a3 {[%clk 0:02:26]}  Rab8 {[%clk 0:02:42]} 16. g4 {[%clk 0:02:23]}  b5 {[%clk 0:02:41]} 17. Nd5 {[%clk 0:01:45]}  Qxd2 {[%clk 0:02:30]} 18. Rxd2 {[%clk 0:01:18]}  Bxd5 {[%clk 0:01:25]} 19. exd5 {[%clk 0:01:16]}  Nd7 {[%clk 0:01:26]} 20. Bxa7 {[%clk 0:01:08]}  Rb7 {[%clk 0:01:12]} 21. Be3 {[%clk 0:01:09]}  Ne5 {[%clk 0:01:10]} 22. Rf2 {[%clk 0:00:49]}  Nc4 {[%clk 0:00:55]} 23. Bc1 {[%clk 0:00:49]}  b4 {[%clk 0:00:55]} 24. Bxc4 {[%clk 0:00:41]}  Rxc4 {[%clk 0:00:50]} 25. a4 {[%clk 0:00:39]}  b3 {[%clk 0:00:50]} 26. cxb3 {[%clk 0:00:40]}  Rxb3 {[%clk 0:00:49]} 27. Rc2 {[%clk 0:00:40]}  Rbb4 {[%clk 0:00:35]} 28. a5 {[%clk 0:00:31]}  Rxc2 {[%clk 0:00:30]} 29. Kxc2 {[%clk 0:00:32]}  Rb5 {[%clk 0:00:30]} 30. Bd2 {[%clk 0:00:31]}  Rxb2+ {[%clk 0:00:30]} 31. Kd3 {[%clk 0:00:32]}  Ra2 {[%clk 0:00:27]} 32. Rb1 {[%clk 0:00:31]}  f5 {[%clk 0:00:27]} 33. gxf5 {[%clk 0:00:31]}  gxf5 {[%clk 0:00:27]} 34. Rb6 {[%clk 0:00:31]}  Kf7 {[%clk 0:00:18]} 35. a6 {[%clk 0:00:30]}  Bd4 {[%clk 0:00:18]} 36. Kxd4 {[%clk 0:00:24]}  Rxd2+ {[%clk 0:00:18]} 37. Kc4 {[%clk 0:00:25]}  Ra2 {[%clk 0:00:18]} 38. Kb5 {[%clk 0:00:25]}  Kf6 {[%clk 0:00:16]} 39. f4 {[%clk 0:00:24]}  Kg6 {[%clk 0:00:09]} 40. Kc6 {[%clk 0:00:24]}  Kh5 {[%clk 0:00:09]} 41. Kd7 {[%clk 0:00:18]}  Kg4 {[%clk 0:00:09]} 42. Kxe7 {[%clk 0:00:19]}  Kxf4 {[%clk 0:00:10]} 43. Kxd6 {[%clk 0:00:19]}  Ke4 {[%clk 0:00:09]} 44. Ke6 {[%clk 0:00:16]}  f4 {[%clk 0:00:09]} 45. d6 {[%clk 0:00:17]}  f3 {[%clk 0:00:09]} 46. d7 {[%clk 0:00:18]}  Rd2 {[%clk 0:00:10]} 47. a7 {[%clk 0:00:17]} 1-0


[Site "https://www.chess.com"]

[Event "Titled Tuesday Blitz August 24 2021"]
[White "Silva, Miguel Antonio Neto"]
[Black "Ponikarovsky, Alexey"]
[WhiteFideId "1911929"]
[BlackFideId "4122887"]
[WhiteElo "2283"]
[BlackElo "1944"]
[Result "0-1"]
[Round "01"]
[TimeControl "180+1"]
[Date "2021.08.24"]
[WhiteClock "0:00:47"]
[BlackClock "0:01:14"]

1. e4 {[%clk 0:02:58]}  c5 {[%clk 0:02:59]} 2. Nf3 {[%clk 0:02:58]}  a6 {[%clk 0:03:00]} 3. c3 {[%clk 0:02:57]}  e6 {[%clk 0:03:00]} 4. d4 {[%clk 0:02:56]}  cxd4 {[%clk 0:03:01]} 5. cxd4 {[%clk 0:02:56]}  d5 {[%clk 0:03:01]} 6. exd5 {[%clk 0:02:56]}  Bb4+ {[%clk 0:03:02]} 7. Bd2 {[%clk 0:02:52]}  Bxd2+ {[%clk 0:03:01]} 8. Qxd2 {[%clk 0:02:52]}  exd5 {[%clk 0:03:02]} 9. Be2 {[%clk 0:02:36]}  Nf6 {[%clk 0:03:03]} 10. O-O {[%clk 0:02:36]}  Ne4 {[%clk 0:03:01]} 11. Qd1 {[%clk 0:02:29]}  O-O {[%clk 0:03:01]} 12. Nc3 {[%clk 0:02:26]}  Nc6 {[%clk 0:03:01]} 13. Bd3 {[%clk 0:02:21]}  Bf5 {[%clk 0:03:00]} 14. h3 {[%clk 0:02:18]}  Re8 {[%clk 0:02:59]} 15. Rc1 {[%clk 0:02:16]}  Rc8 {[%clk 0:02:57]} 16. a3 {[%clk 0:02:11]}  h6 {[%clk 0:02:55]} 17. Qb3 {[%clk 0:02:04]}  Nxc3 {[%clk 0:02:47]} 18. Rxc3 {[%clk 0:02:04]}  Bxd3 {[%clk 0:02:38]} 19. Rxd3 {[%clk 0:02:05]}  b5 {[%clk 0:02:36]} 20. Rc3 {[%clk 0:02:00]}  Na5 {[%clk 0:02:31]} 21. Rxc8 {[%clk 0:01:53]}  Nxb3 {[%clk 0:02:31]} 22. Rxd8 {[%clk 0:01:53]}  Rxd8 {[%clk 0:02:32]} 23. Re1 {[%clk 0:01:49]}  Rc8 {[%clk 0:02:31]} 24. Re2 {[%clk 0:01:39]}  Rc1+ {[%clk 0:02:29]} 25. Kh2 {[%clk 0:01:39]}  Kf8 {[%clk 0:02:29]} 26. Re5 {[%clk 0:01:34]}  Rc2 {[%clk 0:02:28]} 27. Rxd5 {[%clk 0:01:33]}  Rxf2 {[%clk 0:02:27]} 28. Ne5 {[%clk 0:01:28]}  Rxb2 {[%clk 0:02:18]} 29. Rd8+ {[%clk 0:01:28]}  Ke7 {[%clk 0:02:18]} 30. Rd7+ {[%clk 0:01:28]}  Ke6 {[%clk 0:02:17]} 31. Rxf7 {[%clk 0:01:28]}  Nxd4 {[%clk 0:02:16]} 32. Nd3 {[%clk 0:01:21]}  Kxf7 {[%clk 0:02:15]} 33. Nxb2 {[%clk 0:01:21]}  Ke6 {[%clk 0:02:14]} 34. Kg3 {[%clk 0:01:20]}  Kd5 {[%clk 0:02:14]} 35. Kf4 {[%clk 0:01:19]}  g6 {[%clk 0:02:12]} 36. h4 {[%clk 0:01:18]}  Ne6+ {[%clk 0:02:11]} 37. Ke3 {[%clk 0:01:17]}  Kc5 {[%clk 0:02:10]} 38. g4 {[%clk 0:01:16]}  a5 {[%clk 0:02:10]} 39. Ke4 {[%clk 0:01:16]}  Kd6 {[%clk 0:02:07]} 40. h5 {[%clk 0:01:13]}  gxh5 {[%clk 0:02:05]} 41. gxh5 {[%clk 0:01:13]}  Ng7 {[%clk 0:02:05]} 42. a4 {[%clk 0:01:11]}  Kc5 {[%clk 0:02:02]} 43. Nd3+ {[%clk 0:01:05]}  Kc4 {[%clk 0:02:01]} 44. Ne5+ {[%clk 0:01:02]}  Kc5 {[%clk 0:01:57]} 45. axb5 {[%clk 0:01:02]}  Kxb5 {[%clk 0:01:57]} 46. Kd3 {[%clk 0:01:02]}  Nxh5 {[%clk 0:01:55]} 47. Ng4 {[%clk 0:01:02]}  Nf4+ {[%clk 0:01:55]} 48. Ke4 {[%clk 0:01:02]}  h5 {[%clk 0:01:38]} 49. Nf6 {[%clk 0:01:01]}  a4 {[%clk 0:01:18]} 50. Kxf4 {[%clk 0:00:50]}  a3 {[%clk 0:01:17]} 51. Nd5 {[%clk 0:00:50]}  Kc4 {[%clk 0:01:16]} 52. Ne3+ {[%clk 0:00:49]}  Kd3 {[%clk 0:01:15]} 53. Nd5 {[%clk 0:00:48]}  Kc4 {[%clk 0:01:14]} 54. Ne3+ {[%clk 0:00:48]}  Kc3 {[%clk 0:01:13]} 55. Nd5+ {[%clk 0:00:47]}  Kb3 {[%clk 0:01:14]} 0-1


[Site "https://www.chess.com"]

[Event "Titled Tuesday Blitz August 24 2021"]
[White "Srihari L R"]
[Black "Filippova, Margarita"]
[WhiteFideId "46617116"]
[BlackFideId "34199680"]
[WhiteElo "2121"]
[BlackElo "1829"]
[Result "1-0"]
[Round "01"]
[TimeControl "180+1"]
[Date "2021.08.24"]
[WhiteClock "0:00:28"]
[BlackClock "0:00:37"]

1. c4 {[%clk 0:02:59]}  Nf6 {[%clk 0:02:59]} 2. Nc3 {[%clk 0:02:58]}  c5 {[%clk 0:02:59]} 3. Nf3 {[%clk 0:02:57]}  Nc6 {[%clk 0:03:00]} 4. g3 {[%clk 0:02:56]}  g6 {[%clk 0:02:56]} 5. Bg2 {[%clk 0:02:56]}  Bg7 {[%clk 0:02:57]} 6. O-O {[%clk 0:02:56]}  O-O {[%clk 0:02:57]} 7. d4 {[%clk 0:02:55]}  cxd4 {[%clk 0:02:56]} 8. Nxd4 {[%clk 0:02:56]}  Re8 {[%clk 0:02:44]} 9. Nb3 {[%clk 0:02:37]}  d6 {[%clk 0:02:41]} 10. h3 {[%clk 0:02:31]}  Be6 {[%clk 0:02:38]} 11. Nd5 {[%clk 0:02:30]}  Qd7 {[%clk 0:02:36]} 12. Kh2 {[%clk 0:02:29]}  Ne5 {[%clk 0:02:34]} 13. Nd4 {[%clk 0:02:07]}  Nxc4 {[%clk 0:02:29]} 14. Nxe6 {[%clk 0:02:07]}  fxe6 {[%clk 0:02:26]} 15. Nf4 {[%clk 0:02:07]}  Rac8 {[%clk 0:02:11]} 16. Qb3 {[%clk 0:02:06]}  Kh8 {[%clk 0:02:08]} 17. Bxb7 {[%clk 0:01:58]}  Rc7 {[%clk 0:02:00]} 18. Ba6 {[%clk 0:01:58]}  d5 {[%clk 0:01:54]} 19. Bb5 {[%clk 0:01:57]}  Na5 {[%clk 0:01:39]} 20. Bxd7 {[%clk 0:01:48]}  Nxb3 {[%clk 0:01:37]} 21. Bxe8 {[%clk 0:01:34]}  Nxa1 {[%clk 0:01:36]} 22. Nxe6 {[%clk 0:01:34]}  Rc8 {[%clk 0:01:33]} 23. Ba4 {[%clk 0:01:32]}  Nc2 {[%clk 0:01:32]} 24. Bd2 {[%clk 0:01:27]}  Ne4 {[%clk 0:01:22]} 25. Bc1 {[%clk 0:01:22]}  Nd4 {[%clk 0:01:13]} 26. Nxg7 {[%clk 0:01:06]}  Kxg7 {[%clk 0:01:12]} 27. Be3 {[%clk 0:01:00]}  Nc2 {[%clk 0:00:55]} 28. Rc1 {[%clk 0:00:50]}  Nxe3 {[%clk 0:00:55]} 29. Rxc8 {[%clk 0:00:49]}  Nxf2 {[%clk 0:00:55]} 30. Rc7 {[%clk 0:00:47]}  Kf6 {[%clk 0:00:55]} 31. Rxa7 {[%clk 0:00:46]}  Ne4 {[%clk 0:00:55]} 32. Ra6+ {[%clk 0:00:42]}  e6 {[%clk 0:00:53]} 33. b4 {[%clk 0:00:41]}  Nf1+ {[%clk 0:00:52]} 34. Kg2 {[%clk 0:00:39]}  Nfxg3 {[%clk 0:00:52]} 35. Bd7 {[%clk 0:00:39]}  Nxe2 {[%clk 0:00:48]} 36. Rxe6+ {[%clk 0:00:38]}  Kf7 {[%clk 0:00:47]} 37. Re5 {[%clk 0:00:36]}  Nf4+ {[%clk 0:00:46]} 38. Kf3 {[%clk 0:00:34]}  Nd3 {[%clk 0:00:43]} 39. Rxd5 {[%clk 0:00:31]}  Nd2+ {[%clk 0:00:37]} 40. Ke3 {[%clk 0:00:28]} 1-0


[Site "https://www.chess.com"]

[Event "Titled Tuesday Blitz August 24 2021"]
[White "Tang, Andrew"]
[Black "Bouchet, Sebastien"]
[WhiteFideId "2059630"]
[BlackFideId "623571"]
[WhiteElo "2588"]
[BlackElo "2453"]
[Result "1-0"]
[Round "01"]
[TimeControl "180+1"]
[Date "2021.08.24"]
[WhiteClock "0:00:06"]
[BlackClock "0:00:10"]

1. a4 {[%clk 0:02:55]}  d5 {[%clk 0:02:54]} 2. Ra3 {[%clk 0:02:55]}  e5 {[%clk 0:02:54]} 3. Rg3 {[%clk 0:02:53]}  Nf6 {[%clk 0:02:53]} 4. b3 {[%clk 0:02:53]}  g6 {[%clk 0:02:51]} 5. Bb2 {[%clk 0:02:53]}  Nc6 {[%clk 0:02:49]} 6. Nf3 {[%clk 0:02:43]}  Qe7 {[%clk 0:02:46]} 7. e3 {[%clk 0:02:41]}  Bg7 {[%clk 0:02:41]} 8. Bb5 {[%clk 0:02:39]}  Ne4 {[%clk 0:02:41]} 9. Nc3 {[%clk 0:02:10]}  Nxg3 {[%clk 0:02:40]} 10. hxg3 {[%clk 0:02:08]}  Be6 {[%clk 0:02:36]} 11. Qa1 {[%clk 0:02:00]}  O-O {[%clk 0:02:28]} 12. Ne2 {[%clk 0:01:30]}  f6 {[%clk 0:02:22]} 13. d4 {[%clk 0:01:19]}  e4 {[%clk 0:02:16]} 14. Nd2 {[%clk 0:01:15]}  Qd7 {[%clk 0:02:13]} 15. Nf4 {[%clk 0:01:06]}  Bf7 {[%clk 0:02:13]} 16. a5 {[%clk 0:01:03]}  a6 {[%clk 0:02:03]} 17. Be2 {[%clk 0:01:00]}  Rfe8 {[%clk 0:01:43]} 18. c4 {[%clk 0:00:52]}  Nb4 {[%clk 0:01:40]} 19. Kd1 {[%clk 0:00:52]}  Bf8 {[%clk 0:01:28]} 20. Bc3 {[%clk 0:00:47]}  c5 {[%clk 0:01:24]} 21. Bxb4 {[%clk 0:00:26]}  cxb4 {[%clk 0:01:24]} 22. Nxd5 {[%clk 0:00:23]}  Bxd5 {[%clk 0:01:04]} 23. cxd5 {[%clk 0:00:23]}  Kg7 {[%clk 0:01:03]} 24. Bc4 {[%clk 0:00:20]}  Qg4+ {[%clk 0:01:00]} 25. Ke1 {[%clk 0:00:20]}  Bd6 {[%clk 0:00:59]} 26. Qa4 {[%clk 0:00:19]}  Rad8 {[%clk 0:00:56]} 27. Be2 {[%clk 0:00:19]}  Qc8 {[%clk 0:00:56]} 28. Nc4 {[%clk 0:00:19]}  Qd7 {[%clk 0:00:43]} 29. Qxd7+ {[%clk 0:00:14]}  Rxd7 {[%clk 0:00:44]} 30. Kd2 {[%clk 0:00:12]}  Bc7 {[%clk 0:00:36]} 31. d6 {[%clk 0:00:10]}  Bxd6 {[%clk 0:00:35]} 32. g4 {[%clk 0:00:11]}  Bb8 {[%clk 0:00:27]} 33. f3 {[%clk 0:00:11]}  f5 {[%clk 0:00:26]} 34. gxf5 {[%clk 0:00:11]}  gxf5 {[%clk 0:00:26]} 35. Rh5 {[%clk 0:00:12]}  Kg6 {[%clk 0:00:26]} 36. fxe4 {[%clk 0:00:12]}  Rxe4 {[%clk 0:00:24]} 37. Bf3 {[%clk 0:00:12]}  Re8 {[%clk 0:00:21]} 38. Kd3 {[%clk 0:00:13]}  Red8 {[%clk 0:00:21]} 39. g4 {[%clk 0:00:13]}  f4 {[%clk 0:00:21]} 40. Be4+ {[%clk 0:00:10]}  Kf6 {[%clk 0:00:20]} 41. g5+ {[%clk 0:00:10]}  Kg7 {[%clk 0:00:18]} 42. Rxh7+ {[%clk 0:00:10]}  Kg8 {[%clk 0:00:19]} 43. g6 {[%clk 0:00:05]}  fxe3 {[%clk 0:00:18]} 44. d5 {[%clk 0:00:05]}  Rxd5+ {[%clk 0:00:13]} 45. Bxd5+ {[%clk 0:00:06]}  Rxd5+ {[%clk 0:00:13]} 46. Kxe3 {[%clk 0:00:06]}  Ba7+ {[%clk 0:00:13]} 47. Ke2 {[%clk 0:00:06]}  Rg5 {[%clk 0:00:11]} 48. Rxb7 {[%clk 0:00:06]}  Bc5 {[%clk 0:00:12]} 49. Rc7 {[%clk 0:00:06]}  Bd4 {[%clk 0:00:11]} 50. Rc6 {[%clk 0:00:06]}  Bc3 {[%clk 0:00:10]} 51. Rxa6 {[%clk 0:00:07]}  Kg7 {[%clk 0:00:10]} 52. Rb6 {[%clk 0:00:06]}  Rg2+ {[%clk 0:00:10]} 53. Kd3 {[%clk 0:00:06]}  Ra2 {[%clk 0:00:11]} 54. a6 {[%clk 0:00:06]}  Be1 {[%clk 0:00:10]} 55. Ne3 {[%clk 0:00:06]}  Bc3 {[%clk 0:00:10]} 56. Nf5+ {[%clk 0:00:06]}  Kg8 {[%clk 0:00:10]} 57. Rb8# {[%clk 0:00:06]} 1-0


[Site "https://www.chess.com"]

[Event "Titled Tuesday Blitz August 24 2021"]
[White "Tokman, Ariel"]
[Black "Terry, Renato"]
[WhiteFideId "117420"]
[BlackFideId "3803457"]
[WhiteElo "2345"]
[BlackElo "2581"]
[Result "0-1"]
[Round "01"]
[TimeControl "180+1"]
[Date "2021.08.24"]
[WhiteClock "0:00:31"]
[BlackClock "0:01:21"]

1. d4 {[%clk 0:02:59]}  e6 {[%clk 0:02:58]} 2. Bf4 {[%clk 0:02:58]}  Nf6 {[%clk 0:02:58]} 3. e3 {[%clk 0:02:58]}  b6 {[%clk 0:02:58]} 4. Nf3 {[%clk 0:02:58]}  Bb7 {[%clk 0:02:58]} 5. a4 {[%clk 0:02:58]}  Bd6 {[%clk 0:02:53]} 6. Bxd6 {[%clk 0:02:51]}  cxd6 {[%clk 0:02:54]} 7. Be2 {[%clk 0:02:51]}  O-O {[%clk 0:02:54]} 8. O-O {[%clk 0:02:51]}  d5 {[%clk 0:02:55]} 9. Nbd2 {[%clk 0:02:44]}  Nc6 {[%clk 0:02:55]} 10. c3 {[%clk 0:02:43]}  d6 {[%clk 0:02:47]} 11. Qb3 {[%clk 0:02:41]}  Rb8 {[%clk 0:02:45]} 12. Qa3 {[%clk 0:02:40]}  e5 {[%clk 0:02:37]} 13. Rfc1 {[%clk 0:02:31]}  Ne4 {[%clk 0:02:32]} 14. Nxe4 {[%clk 0:02:25]}  dxe4 {[%clk 0:02:32]} 15. Nd2 {[%clk 0:02:25]}  d5 {[%clk 0:02:32]} 16. b4 {[%clk 0:02:19]}  Qg5 {[%clk 0:02:16]} 17. Nf1 {[%clk 0:02:05]}  f5 {[%clk 0:02:10]} 18. b5 {[%clk 0:02:05]}  Na5 {[%clk 0:02:10]} 19. Qd6 {[%clk 0:01:51]}  Rbe8 {[%clk 0:02:04]} 20. dxe5 {[%clk 0:01:36]}  f4 {[%clk 0:02:00]} 21. exf4 {[%clk 0:01:33]}  Qxf4 {[%clk 0:02:00]} 22. Ng3 {[%clk 0:01:19]}  Nb3 {[%clk 0:01:58]} 23. Re1 {[%clk 0:01:02]}  Qxf2+ {[%clk 0:01:53]} 24. Kh1 {[%clk 0:01:00]}  Nxa1 {[%clk 0:01:54]} 25. Rxa1 {[%clk 0:00:58]}  Qf4 {[%clk 0:01:30]} 26. Qc7 {[%clk 0:00:47]}  Rf7 {[%clk 0:01:25]} 27. Qd6 {[%clk 0:00:36]}  Qxe5 {[%clk 0:01:22]} 28. Qb4 {[%clk 0:00:36]}  Rc7 {[%clk 0:01:21]} 29. Rc1 {[%clk 0:00:31]}  Rec8 {[%clk 0:01:21]} 0-1


[Site "https://www.chess.com"]

[Event "Titled Tuesday Blitz August 24 2021"]
[White "Tymrakiewicz, Rafal"]
[Black "Shahade, Gregory"]
[WhiteFideId "1108832"]
[BlackFideId "2009064"]
[WhiteElo "2172"]
[BlackElo "2690"]
[Result "0-1"]
[Round "01"]
[TimeControl "180+1"]
[Date "2021.08.24"]
[WhiteClock "0:00:09"]
[BlackClock "0:00:07"]

1. d4 {[%clk 0:03:00]}  Nf6 {[%clk 0:02:59]} 2. Bg5 {[%clk 0:02:57]}  c5 {[%clk 0:02:57]} 3. e3 {[%clk 0:02:55]}  d5 {[%clk 0:02:48]} 4. c3 {[%clk 0:02:51]}  Nc6 {[%clk 0:02:45]} 5. Nd2 {[%clk 0:02:47]}  e5 {[%clk 0:02:40]} 6. dxe5 {[%clk 0:02:39]}  Nxe5 {[%clk 0:02:39]} 7. Ngf3 {[%clk 0:02:39]}  Bd6 {[%clk 0:02:34]} 8. Nxe5 {[%clk 0:02:35]}  Bxe5 {[%clk 0:02:34]} 9. Nf3 {[%clk 0:02:36]}  Bc7 {[%clk 0:02:28]} 10. Bb5+ {[%clk 0:02:23]}  Kf8 {[%clk 0:02:25]} 11. Bxf6 {[%clk 0:01:54]}  gxf6 {[%clk 0:02:25]} 12. O-O {[%clk 0:01:54]}  Rg8 {[%clk 0:02:21]} 13. g3 {[%clk 0:01:54]}  a6 {[%clk 0:02:12]} 14. Be2 {[%clk 0:01:54]}  Bh3 {[%clk 0:01:57]} 15. Re1 {[%clk 0:01:53]}  Qd7 {[%clk 0:01:05]} 16. c4 {[%clk 0:01:51]}  dxc4 {[%clk 0:00:59]} 17. Qxd7 {[%clk 0:01:50]}  Bxd7 {[%clk 0:01:00]} 18. Bxc4 {[%clk 0:01:50]}  Bc6 {[%clk 0:01:00]} 19. Kg2 {[%clk 0:01:42]}  b5 {[%clk 0:00:52]} 20. Bd3 {[%clk 0:01:41]}  Rd8 {[%clk 0:00:48]} 21. Red1 {[%clk 0:01:35]}  h5 {[%clk 0:00:46]} 22. h4 {[%clk 0:01:17]}  Be5 {[%clk 0:00:45]} 23. Bh7 {[%clk 0:00:49]}  Rxd1 {[%clk 0:00:33]} 24. Rxd1 {[%clk 0:00:49]}  Rg4 {[%clk 0:00:32]} 25. Bf5 {[%clk 0:00:41]}  Ra4 {[%clk 0:00:29]} 26. Bd7 {[%clk 0:00:36]}  Bxf3+ {[%clk 0:00:25]} 27. Kxf3 {[%clk 0:00:35]}  Rxa2 {[%clk 0:00:25]} 28. b3 {[%clk 0:00:30]}  Rb2 {[%clk 0:00:25]} 29. Bc8 {[%clk 0:00:30]}  Rxb3 {[%clk 0:00:22]} 30. Rd8+ {[%clk 0:00:29]}  Kg7 {[%clk 0:00:20]} 31. Bxa6 {[%clk 0:00:28]}  c4 {[%clk 0:00:21]} 32. Rc8 {[%clk 0:00:27]}  c3 {[%clk 0:00:20]} 33. Ke4 {[%clk 0:00:27]}  b4 {[%clk 0:00:18]} 34. f4 {[%clk 0:00:27]}  Bd6 {[%clk 0:00:17]} 35. Rc6 {[%clk 0:00:26]}  Bf8 {[%clk 0:00:17]} 36. Rc7 {[%clk 0:00:26]}  c2 {[%clk 0:00:12]} 37. Rxc2 {[%clk 0:00:24]}  Ra3 {[%clk 0:00:12]} 38. Bc4 {[%clk 0:00:23]}  Bc5 {[%clk 0:00:11]} 39. Re2 {[%clk 0:00:22]}  b3 {[%clk 0:00:12]} 40. Rb2 {[%clk 0:00:21]}  Ra4 {[%clk 0:00:11]} 41. Kd5 {[%clk 0:00:19]}  Bxe3 {[%clk 0:00:11]} 42. Rxb3 {[%clk 0:00:20]}  Bf2 {[%clk 0:00:11]} 43. Rd3 {[%clk 0:00:15]}  Ra1 {[%clk 0:00:10]} 44. Ke4 {[%clk 0:00:14]}  Rg1 {[%clk 0:00:10]} 45. Rd7 {[%clk 0:00:11]}  Bxg3 {[%clk 0:00:09]} 46. Kf5 {[%clk 0:00:11]}  Bxh4 {[%clk 0:00:08]} 47. Rxf7+ {[%clk 0:00:11]}  Kh6 {[%clk 0:00:08]} 48. Rxf6+ {[%clk 0:00:11]}  Bxf6 {[%clk 0:00:08]} 49. Kxf6 {[%clk 0:00:11]}  Rc1 {[%clk 0:00:07]} 50. Be6 {[%clk 0:00:10]}  h4 {[%clk 0:00:07]} 51. Ke5 {[%clk 0:00:11]}  Re1+ {[%clk 0:00:06]} 52. Kf6 {[%clk 0:00:10]}  Rxe6+ {[%clk 0:00:07]} 53. Kxe6 {[%clk 0:00:10]}  h3 {[%clk 0:00:07]} 54. f5 {[%clk 0:00:08]}  h2 {[%clk 0:00:08]} 55. f6 {[%clk 0:00:09]}  h1=Q {[%clk 0:00:09]} 56. f7 {[%clk 0:00:09]}  Qa8 {[%clk 0:00:08]} 57. Ke7 {[%clk 0:00:08]}  Kg7 {[%clk 0:00:07]} 58. f8=Q+ {[%clk 0:00:09]}  Qxf8+ {[%clk 0:00:07]} 0-1


[Site "https://www.chess.com"]

[Event "Titled Tuesday Blitz August 24 2021"]
[White "Vazquez, Facundo"]
[Black "Le, Tuan Minh"]
[WhiteFideId "3007669"]
[BlackFideId "12401153"]
[WhiteElo "1984"]
[BlackElo "2450"]
[Result "0-1"]
[Round "01"]
[TimeControl "180+1"]
[Date "2021.08.24"]
[WhiteClock "0:00:07"]
[BlackClock "0:00:04"]

1. d4 {[%clk 0:03:00]}  d5 {[%clk 0:02:58]} 2. c4 {[%clk 0:03:00]}  c6 {[%clk 0:02:56]} 3. Nc3 {[%clk 0:03:00]}  Nf6 {[%clk 0:02:57]} 4. e3 {[%clk 0:02:59]}  a6 {[%clk 0:02:57]} 5. cxd5 {[%clk 0:02:57]}  cxd5 {[%clk 0:02:57]} 6. f4 {[%clk 0:02:57]}  Bf5 {[%clk 0:02:48]} 7. Nf3 {[%clk 0:02:55]}  Nc6 {[%clk 0:02:45]} 8. Bd3 {[%clk 0:02:53]}  Bxd3 {[%clk 0:02:45]} 9. Qxd3 {[%clk 0:02:52]}  e6 {[%clk 0:02:46]} 10. O-O {[%clk 0:02:51]}  Bb4 {[%clk 0:02:47]} 11. Ne5 {[%clk 0:02:49]}  Rc8 {[%clk 0:02:44]} 12. Bd2 {[%clk 0:02:39]}  O-O {[%clk 0:02:38]} 13. Rf3 {[%clk 0:02:18]}  Bxc3 {[%clk 0:02:33]} 14. Bxc3 {[%clk 0:02:12]}  Ne4 {[%clk 0:02:34]} 15. f5 {[%clk 0:01:57]}  Nxe5 {[%clk 0:02:22]} 16. dxe5 {[%clk 0:01:56]}  Nxc3 {[%clk 0:02:23]} 17. bxc3 {[%clk 0:01:55]}  Qc7 {[%clk 0:02:23]} 18. e4 {[%clk 0:01:33]}  Qxe5 {[%clk 0:02:13]} 19. exd5 {[%clk 0:01:31]}  exd5 {[%clk 0:02:14]} 20. f6 {[%clk 0:01:29]}  g6 {[%clk 0:02:10]} 21. Raf1 {[%clk 0:01:26]}  h5 {[%clk 0:01:37]} 22. Re3 {[%clk 0:01:19]}  Qd6 {[%clk 0:01:18]} 23. Rg3 {[%clk 0:01:16]}  Kh7 {[%clk 0:00:56]} 24. Rg5 {[%clk 0:01:12]}  Qc5+ {[%clk 0:00:39]} 25. Kh1 {[%clk 0:01:07]}  Qxc3 {[%clk 0:00:40]} 26. Rxh5+ {[%clk 0:00:49]}  Kg8 {[%clk 0:00:39]} 27. Rxd5 {[%clk 0:00:44]}  Rfe8 {[%clk 0:00:26]} 28. Qxc3 {[%clk 0:00:33]}  Rxc3 {[%clk 0:00:27]} 29. h3 {[%clk 0:00:30]}  Rc2 {[%clk 0:00:25]} 30. a4 {[%clk 0:00:27]}  Ree2 {[%clk 0:00:10]} 31. Rd8+ {[%clk 0:00:25]}  Kh7 {[%clk 0:00:10]} 32. Rf4 {[%clk 0:00:14]}  g5 {[%clk 0:00:04]} 33. Rg4 {[%clk 0:00:14]}  Kg6 {[%clk 0:00:04]} 34. Rd5 {[%clk 0:00:13]}  Kxf6 {[%clk 0:00:04]} 35. Rdxg5 {[%clk 0:00:13]}  Rb2 {[%clk 0:00:03]} 36. Rd5 {[%clk 0:00:11]}  Ke6 {[%clk 0:00:03]} 37. Rdd4 {[%clk 0:00:10]}  b5 {[%clk 0:00:03]} 38. axb5 {[%clk 0:00:09]}  axb5 {[%clk 0:00:04]} 39. h4 {[%clk 0:00:10]}  f5 {[%clk 0:00:03]} 40. Rg6+ {[%clk 0:00:09]}  Ke5 {[%clk 0:00:04]} 41. Rdd6 {[%clk 0:00:09]}  Re1+ {[%clk 0:00:04]} 42. Kh2 {[%clk 0:00:08]}  Re4 {[%clk 0:00:05]} 43. Rde6+ {[%clk 0:00:08]}  Kf4 {[%clk 0:00:05]} 44. Rxe4+ {[%clk 0:00:07]}  fxe4 {[%clk 0:00:06]} 45. h5 {[%clk 0:00:07]}  Kf5 {[%clk 0:00:06]} 46. Rg8 {[%clk 0:00:06]}  e3 {[%clk 0:00:06]} 47. h6 {[%clk 0:00:06]}  e2 {[%clk 0:00:07]} 48. h7 {[%clk 0:00:06]}  e1=Q {[%clk 0:00:07]} 49. h8=Q {[%clk 0:00:06]}  Qe5+ {[%clk 0:00:04]} 50. Rg3 {[%clk 0:00:07]}  Qxh8+ {[%clk 0:00:04]} 0-1


[Site "https://www.chess.com"]